fUST/lending_fUST_20260129
["ID","MTS","AMOUNT","RATE_DAILY","PERIOD"]
[403920523,1769679042069,-500.0,0.00014247,2]
[403920524,1769679042078,-200.0,0.00014247,2]
[403920525,1769679042088,-2677.96673835,0.00014284,2]
[403920526,1769679042097,-500.0,0.00014368,2]
[403920527,1769679042107,-1000.0,0.00014368,2]
[403920528,1769679042116,-1059.00085584,0.00014368,2]
[403920529,1769679042125,-1500.0,0.00014368,2]
[403920530,1769679042134,-1174.31678051,0.00014368,2]
[403920531,1769679042144,-1500.0,0.00014368,2]
[403920532,1769679042158,-1500.0,0.00014368,2]
[403920533,1769679042167,-1500.0,0.00014368,2]
[403920534,1769679042176,-969.61936393,0.00014368,2]
[403920535,1769679042185,-1500.0,0.00014368,2]
[403920536,1769679042196,-268.34650551,0.00014368,2]
[403920537,1769679042205,-1500.0,0.00014368,2]
[403920538,1769679042214,-1500.0,0.00014368,2]
[403920539,1769679042225,-1500.0,0.00014368,2]
[403920540,1769679042235,-167.59538682,0.00014384,2]
[403920541,1769679042244,-500.0,0.00014384,2]
[403920542,1769679042253,-500.0,0.00014384,2]
[403920543,1769679042262,-281.95726371,0.000145,2]
[403920544,1769679042271,-218.34852113,0.00014521,2]
[403920545,1769679042280,-500.0,0.00014521,2]
[403920546,1769679042290,-500.0,0.00014642,2]
[403920547,1769679042299,-550.0,0.00014658,2]
[403920548,1769679042308,-900.0,0.00014768,2]
[403920549,1769679042317,-822.54748319,0.00014795,2]
[403920550,1769679042326,-565.0903288,0.00014795,2]
[403920551,1769679042344,-336.07837269,0.00014795,2]
[403920552,1769679042355,-1500.0,0.00014795,2]
[403920553,1769679042365,-501.10012348,0.00014795,2]
[403920554,1769679042375,-1500.0,0.00014795,2]
[403920555,1769679042384,-1500.0,0.00014795,2]
[403920556,1769679042394,-596.00080003,0.000149,2]
[403920557,1769679042404,-500.0,0.00014916,2]
[403920558,1769679042413,-1000.0,0.00014916,2]
[403920559,1769679042423,-2001.01080598,0.00014916,2]
[403920560,1769679042432,-504.66008898,0.00014916,2]
[403920561,1769679042441,-1500.0,0.00014916,2]
[403920562,1769679042451,-1000.0,0.00014916,2]
[403920563,1769679042460,-1000.0,0.00014916,2]
[403920564,1769679042470,-2000.0,0.00014916,2]
[403920565,1769679042479,-2000.0,0.00014916,2]
[403920566,1769679042488,-1150.70118061,0.00015,2]
[403920567,1769679042498,-1020.77037412,0.00015,2]
[403920568,1769679042507,-90000.0,0.00015,2]
[403920569,1769679042517,-40904.92377895,0.00015,2]
[403920570,1769679042526,-151.25880561,0.00015,2]
[403920571,1769679042535,-587.0,0.00015048,2]
[403920572,1769679042544,-1200.0,0.00015316,2]
[403920573,1769679042554,-9835.07,0.00015342,2]
[403920574,1769679042563,-500.0,0.00015342,2]
[403920575,1769679042573,-849.71421088,0.00015342,2]
[403920576,1769679042582,-2000.0,0.00015342,2]
[403920577,1769679042592,-181627.56033107,0.000154,2]
[403920578,1769679042733,-2787.66697875,0.000154,2]
[403920579,1769679042857,-4244.11032792,0.000154,2]
[403920590,1769679043973,-435.015,0.00013853,2]
[403920596,1769679046732,-840.605,0.00013853,2]
[403920597,1769679046741,-1768.9529409,0.00014281,2]
[403920604,1769679048738,-8231.0470591,0.00014281,2]
[403920605,1769679048748,-73847.6811403,0.000154,2]
[403920610,1769679247244,300.0,0.00012173,2]
[403920611,1769679255044,5000.0,0.00012435,2]
[403920612,1769679263089,4700.01,0.00012435,2]
[403920613,1769679263112,299.99,0.00012435,2]
[403920614,1769679277808,855.7467118,0.00012271,2]
[403920615,1769679284846,-3061.22346357,0.000124,2]
[403920616,1769679286402,3877.56307286,0.00012276,2]
[403920617,1769679286425,1122.43692714,0.00012276,2]
[403920618,1769679476268,2327.6601664,0.000124,2]
[403920619,1769679479611,177.07,2.997e-05,2]
[403920620,1769679479890,177.07,2.997e-05,2]
[403920621,1769679480359,177.07,2.997e-05,2]
[403920622,1769679496224,2037.86357385,0.00012435,2]
[403920623,1769679620410,2448.97877088,0.000124,2]
[403920624,1769679641869,3095.73403576,0.00012435,2]
[403920625,1769679675806,325.4768,0.00034799,120]
[403920626,1769679702431,155.693,0.0001225,2]
[403920627,1769679834584,500.0,0.000348,120]
[403920628,1769679834830,500.0,0.000348,120]
[403920629,1769679835059,500.0,0.000348,120]
[403920630,1769679835296,500.0,0.000348,120]
[403920631,1769679835539,500.0,0.000348,120]
[403920632,1769679835885,500.0,0.000348,120]
[403920633,1769679836015,500.0,0.000348,120]
[403920634,1769679836248,500.0,0.000348,120]
[403920635,1769679836485,500.0,0.000348,120]
[403920636,1769679836712,586.37283529,0.000348,120]
[403920637,1769679867040,2094.89414976,0.000124,2]
[403920639,1769679933893,173.0,0.000348,120]
[403920640,1769679960601,1959.18301668,0.000124,2]
[403920647,1769680070247,3881.6630917,0.00011687,2]
[403920648,1769680095429,1674.87952675,0.00012435,2]
[403920650,1769680199578,10000.01,0.000124,2]
[403920651,1769680199605,10000.01,0.000124,2]
[403920652,1769680199630,10000.01,0.000124,2]
[403920653,1769680199655,10000.01,0.000124,2]
[403920654,1769680215008,-1241.28036106,0.00012276,2]
[403920655,1769680222517,-505.45181849,0.00012276,2]
[403920656,1769680224596,-261.2166889,0.00012276,2]
[403920657,1769680229714,-163.42807208,0.00012276,2]
[403920660,1769680231848,-207.41694966,0.00012276,2]
[403920661,1769680231864,-2621.20610981,0.00012276,2]
[403920662,1769680231873,-4702.93478451,0.000124,2]
[403920663,1769680231884,-17294.66422918,0.000124,2]
[403920664,1769680231916,-488.93656277,0.000124,2]
[403920665,1769680231927,-1079.27782078,0.000124,2]
[403920666,1769680231939,-534.54761844,0.000124,2]
[403920667,1769680231949,-1027.6,0.000124,2]
[403920668,1769680231960,-1930.03967507,0.000124,2]
[403920669,1769680231971,-1046.39845533,0.000124,2]
[403920707,1769680237852,-554.36801855,0.00012399,2]
[403920709,1769680237861,-500.0,0.00012399,2]
[403920711,1769680237870,-500.0,0.00012399,2]
[403920713,1769680237879,-500.0,0.00012399,2]
[403920715,1769680237888,-500.0,0.00012399,2]
[403920716,1769680237898,-500.0,0.00012399,2]
[403920718,1769680237907,-500.0,0.00012399,2]
[403920720,1769680237917,-500.0,0.00012399,2]
[403920722,1769680237926,-335.86906018,0.00012399,2]
[403920723,1769680237935,-500.0,0.00012399,2]
[403920725,1769680237944,-500.0,0.00012399,2]
[403920727,1769680237953,-500.0,0.00012399,2]
[403920729,1769680237963,-500.0,0.00012399,2]
[403920731,1769680237972,-500.0,0.00012399,2]
[403920733,1769680237981,-463.00352388,0.00012399,2]
[403920734,1769680237990,-500.0,0.00012399,2]
[403920736,1769680237999,-500.0,0.00012399,2]
[403920738,1769680238007,-500.0,0.00012399,2]
[403920740,1769680238018,-500.0,0.00012399,2]
[403920742,1769680238028,-310.00510886,0.00012399,2]
[403920744,1769680238037,-500.0,0.00012399,2]
[403920746,1769680238047,-472.70385786,0.00012399,2]
[403920748,1769680238056,-379.1951572,0.00012399,2]
[403920750,1769680238066,-2331895.56085392,0.000124,2]
[403920752,1769680238075,-300.0,0.00012498,2]
[403920753,1769680238084,-241.13936443,0.00012498,2]
[403920755,1769680238094,-240.04,0.000125,2]
[403920757,1769680238103,-151.0,0.000125,2]
[403920759,1769680238113,-151.0,0.000125,2]
[403920761,1769680238122,-151.0,0.000125,2]
[403920763,1769680238132,-151.0,0.000125,2]
[403920765,1769680238141,-151.0,0.000125,2]
[403920767,1769680238151,-151.0,0.000125,2]
[403920769,1769680238160,-151.0,0.000125,2]
[403920771,1769680238169,-151.0,0.000125,2]
[403920773,1769680238178,-151.0,0.000125,2]
[403920775,1769680238187,-151.0,0.000125,2]
[403920777,1769680238197,-151.0,0.000125,2]
[403920779,1769680238207,-151.0,0.000125,2]
[403920781,1769680238216,-151.0,0.000125,2]
[403920796,1769680238389,-300.0,0.00012748,2]
[403920798,1769680238399,-300.0,0.00012748,2]
[403920800,1769680238409,-300.0,0.00012748,2]
[403920802,1769680238418,-300.0,0.00012748,2]
[403920804,1769680238427,-300.0,0.00012748,2]
[403920806,1769680238436,-300.0,0.00012748,2]
[403920808,1769680238445,-300.0,0.00012748,2]
[403920810,1769680238454,-300.0,0.00012748,2]
[403920812,1769680238463,-300.0,0.00012748,2]
[403920814,1769680238472,-300.0,0.00012748,2]
[403920815,1769680238481,-300.0,0.00012748,2]
[403920817,1769680238490,-300.0,0.00012748,2]
[403920819,1769680238500,-300.0,0.00012748,2]
[403920821,1769680238509,-300.0,0.00012748,2]
[403920823,1769680238518,-300.0,0.00012748,2]
[403920825,1769680238528,-600.0,0.00012749,2]
[403920827,1769680238537,-500.0,0.00012749,2]
[403920829,1769680238546,-4626.895246,0.00012937,2]
[403920831,1769680238555,-383.45,0.00013,2]
[403920833,1769680238564,-2737.81768824,0.00013,2]
[403920835,1769680238575,-500.0,0.00013023,2]
[403920837,1769680238584,-1959.18301667,0.00013077,2]
[403920839,1769680238593,-500.0,0.00013273,2]
[403920841,1769680238602,-500.0,0.00013273,2]
[403920843,1769680238610,-501.84700796,0.00013273,2]
[403920845,1769680238619,-501.0352963,0.00013273,2]
[403920846,1769680238628,-500.0,0.00013273,2]
[403920848,1769680238637,-500.0,0.00013273,2]
[403920850,1769680238646,-161.6192891,0.00013273,2]
[403920851,1769680238659,-502.30333023,0.00013273,2]
[403920853,1769680238668,-316.86005023,0.00013273,2]
[403920855,1769680238677,-151.83186163,0.00013273,2]
[403920857,1769680238686,-500.0,0.00013273,2]
[403920859,1769680238694,-502.84198919,0.00013273,2]
[403920860,1769680238705,-500.0,0.00013273,2]
[403920862,1769680238714,-500.0,0.00013273,2]
[403920864,1769680238723,-501.31853517,0.00013273,2]
[403920866,1769680238735,-500.0,0.00013273,2]
[403920868,1769680238744,-500.0,0.00013273,2]
[403920870,1769680238753,-500.0,0.00013273,2]
[403920872,1769680238762,-162.28812704,0.00013273,2]
[403920874,1769680238772,-500.0,0.00013273,2]
[403920876,1769680238781,-500.0,0.00013273,2]
[403920878,1769680238790,-502.121625,0.00013273,2]
[403920880,1769680238801,-430.04295978,0.00013273,2]
[403920882,1769680238811,-500.0,0.00013273,2]
[403920884,1769680238820,-504.66671492,0.00013273,2]
[403920886,1769680238829,-536.76797533,0.00013273,2]
[403920888,1769680238838,-167.9297864,0.00013273,2]
[403920890,1769680238847,-398.37330193,0.00013273,2]
[403920892,1769680238856,-634.23164184,0.00013273,2]
[403920894,1769680238866,-500.0,0.00013273,2]
[403920896,1769680238874,-549.00671497,0.00013273,2]
[403920898,1769680238884,-500.0,0.00013273,2]
[403920900,1769680238893,-500.0,0.00013273,2]
[403920902,1769680238902,-500.0,0.00013273,2]
[403920904,1769680238911,-500.0,0.00013273,2]
[403920906,1769680238920,-500.0,0.00013273,2]
[403920908,1769680238929,-467.88085313,0.00013273,2]
[403920910,1769680238938,-500.92401321,0.00013273,2]
[403920912,1769680238947,-500.0,0.00013273,2]
[403920914,1769680238957,-500.0,0.00013273,2]
[403920916,1769680238966,-500.0,0.00013273,2]
[403920917,1769680238976,-500.0,0.00013273,2]
[403920919,1769680238985,-500.0,0.00013273,2]
[403920922,1769680238995,-500.0,0.00013273,2]
[403920923,1769680239005,-500.0,0.00013297,2]
[403920925,1769680239014,-4626.895246,0.00013482,2]
[403920927,1769680239023,-500.0,0.00013571,2]
[403920929,1769680239032,-11843.32924496,0.00013647,2]
[403920931,1769680239041,-300.0,0.00013673,2]
[403920933,1769680239050,-607.57,0.00013698,2]
[403920935,1769680239059,-607.57,0.00013698,2]
[403920937,1769680239068,-607.57,0.00013698,2]
[403920939,1769680239078,-607.57,0.00013698,2]
[403920941,1769680239087,-607.57,0.00013698,2]
[403920943,1769680239096,-607.57,0.00013698,2]
[403920945,1769680239107,-607.57,0.00013698,2]
[403920947,1769680239117,-607.57,0.00013698,2]
[403920949,1769680239126,-607.57,0.00013698,2]
[403920951,1769680239136,-607.57,0.00013698,2]
[403920953,1769680239146,-607.57,0.00013698,2]
[403920955,1769680239155,-607.57,0.00013698,2]
[403920957,1769680239164,-607.57,0.00013698,2]
[403920959,1769680239173,-607.57,0.00013698,2]
[403920961,1769680239182,-607.57,0.00013698,2]
[403920963,1769680239191,-607.57,0.00013698,2]
[403920965,1769680239201,-607.57,0.00013698,2]
[403920967,1769680239210,-607.57,0.00013698,2]
[403920969,1769680239220,-607.57,0.00013698,2]
[403920971,1769680239229,-607.57,0.00013698,2]
[403920973,1769680239239,-607.57,0.00013698,2]
[403920975,1769680239248,-607.57,0.00013698,2]
[403920977,1769680239257,-607.57,0.00013698,2]
[403920979,1769680239267,-607.6,0.00013698,2]
[403920981,1769680239276,-500.0,0.00013698,2]
[403920983,1769680239285,-500.0,0.00013698,2]
[403920985,1769680239294,-500.0,0.00013698,2]
[403920987,1769680239303,-500.0,0.00013698,2]
[403920989,1769680239313,-500.0,0.00013698,2]
[403920990,1769680239327,-500.0,0.00013698,2]
[403920992,1769680239336,-500.0,0.00013698,2]
[403920994,1769680239346,-500.0,0.00013698,2]
[403920996,1769680239355,-500.0,0.00013698,2]
[403920998,1769680239364,-500.0,0.00013698,2]
[403921001,1769680239375,-500.0,0.00013698,2]
[403921003,1769680239385,-500.0,0.00013698,2]
[403921005,1769680239395,-500.0,0.00013698,2]
[403921006,1769680239404,-500.0,0.00013698,2]
[403921008,1769680239413,-500.0,0.00013698,2]
[403921010,1769680239422,-500.0,0.00013698,2]
[403921012,1769680239431,-500.0,0.00013698,2]
[403921014,1769680239441,-500.0,0.00013698,2]
[403921016,1769680239450,-500.0,0.00013698,2]
[403921018,1769680239459,-500.0,0.00013698,2]
[403921020,1769680239468,-492.70915793,0.00013698,2]
[403921022,1769680239478,-500.0,0.00013698,2]
[403921024,1769680239487,-610.45891108,0.00013698,2]
[403921026,1769680239497,-525.32488563,0.00013698,2]
[403921028,1769680239506,-500.0,0.00013698,2]
[403921030,1769680239515,-500.0,0.00013698,2]
[403921033,1769680239524,-500.0,0.00013698,2]
[403921035,1769680239533,-500.0,0.00013698,2]
[403921037,1769680239542,-500.0,0.00013698,2]
[403921039,1769680239551,-500.0,0.00013698,2]
[403921041,1769680239560,-500.0,0.00013698,2]
[403921043,1769680239569,-583.95253597,0.00013698,2]
[403921045,1769680239578,-500.0,0.00013698,2]
[403921047,1769680239586,-500.0,0.00013698,2]
[403921049,1769680239595,-500.0,0.00013698,2]
[403921051,1769680239604,-500.0,0.00013698,2]
[403921053,1769680239613,-500.0,0.00013698,2]
[403921055,1769680239622,-500.0,0.00013698,2]
[403921057,1769680239631,-500.0,0.00013698,2]
[403921059,1769680239640,-544.76043412,0.00013698,2]
[403921060,1769680239649,-500.0,0.00013698,2]
[403921062,1769680239660,-533.70108919,0.00013698,2]
[403921064,1769680239669,-500.0,0.00013698,2]
[403921066,1769680239678,-500.0,0.00013698,2]
[403921068,1769680239687,-500.0,0.00013698,2]
[403921070,1769680239696,-500.0,0.00013698,2]
[403921072,1769680239706,-500.0,0.00013698,2]
[403921074,1769680239715,-500.0,0.00013698,2]
[403921076,1769680239724,-518.94139039,0.00013698,2]
[403921078,1769680239733,-500.0,0.00013698,2]
[403921080,1769680239742,-500.0,0.00013698,2]
[403921082,1769680239751,-500.0,0.00013698,2]
[403921084,1769680239760,-500.0,0.00013698,2]
[403921086,1769680239770,-500.0,0.00013698,2]
[403921088,1769680239779,-502.22690096,0.00013698,2]
[403921090,1769680239789,-500.0,0.00013698,2]
[403921092,1769680239798,-500.0,0.00013698,2]
[403921094,1769680239807,-500.0,0.00013698,2]
[403921096,1769680239817,-500.0,0.00013698,2]
[403921098,1769680239827,-500.0,0.00013698,2]
[403921100,1769680239836,-500.0,0.00013698,2]
[403921102,1769680239846,-500.0,0.00013698,2]
[403921104,1769680239856,-500.0,0.00013698,2]
[403921105,1769680239865,-500.0,0.00013698,2]
[403921106,1769680239874,-500.0,0.00013698,2]
[403921107,1769680239883,-500.0,0.00013698,2]
[403921108,1769680239893,-500.0,0.00013698,2]
[403921109,1769680239902,-500.0,0.00013698,2]
[403921110,1769680239911,-500.0,0.00013698,2]
[403921111,1769680239920,-500.0,0.00013698,2]
[403921112,1769680239930,-500.0,0.00013698,2]
[403921113,1769680239939,-500.0,0.00013698,2]
[403921114,1769680239948,-500.0,0.00013698,2]
[403921115,1769680239957,-500.0,0.00013698,2]
[403921116,1769680239965,-500.0,0.00013698,2]
[403921117,1769680239974,-500.0,0.00013698,2]
[403921118,1769680239984,-500.0,0.00013698,2]
[403921119,1769680239992,-500.0,0.00013698,2]
[403921120,1769680240001,-500.0,0.00013698,2]
[403921121,1769680240010,-530.03606409,0.00013698,2]
[403921122,1769680240020,-1223.535947,0.00013699,2]
[403921123,1769680240028,-1000.0,0.00013699,2]
[403921124,1769680240037,-500.0,0.00013699,2]
[403921125,1769680240046,-314.792435,0.00013699,2]
[403921126,1769680240056,-501.76365168,0.00013699,2]
[403921127,1769680240064,-500.75803963,0.00013699,2]
[403921128,1769680240073,-500.0,0.00013699,2]
[403921129,1769680240082,-454.63175359,0.00013699,2]
[403921130,1769680240091,-501.60095283,0.00013699,2]
[403921131,1769680240100,-500.84679195,0.00013699,2]
[403921132,1769680240110,-507.77467851,0.00013699,2]
[403921133,1769680240118,-500.0,0.00013699,2]
[403921134,1769680240127,-500.0,0.00013699,2]
[403921135,1769680240136,-500.0,0.00013699,2]
[403921136,1769680240145,-500.0,0.00013699,2]
[403921137,1769680240154,-500.0,0.00013699,2]
[403921138,1769680240163,-500.0,0.00013699,2]
[403921139,1769680240171,-500.0,0.00013699,2]
[403921140,1769680240180,-500.0,0.00013699,2]
[403921141,1769680240189,-291.60725507,0.00013699,2]
[403921142,1769680240198,-500.0,0.00013699,2]
[403921143,1769680240207,-500.0,0.00013699,2]
[403921144,1769680240216,-500.0,0.00013699,2]
[403921145,1769680240226,-500.0,0.00013699,2]
[403921146,1769680240235,-500.0,0.00013699,2]
[403921147,1769680240244,-500.0,0.00013699,2]
[403921148,1769680240254,-502.71899874,0.00013699,2]
[403921149,1769680240263,-500.0,0.00013699,2]
[403921150,1769680240272,-500.0,0.00013699,2]
[403921151,1769680240281,-500.0,0.00013699,2]
[403921152,1769680240290,-249.42507094,0.00013699,2]
[403921153,1769680240299,-420.0,0.00013713,2]
[403921154,1769680240308,-1959.18301667,0.00013753,2]
[403921155,1769680240316,-501.40141245,0.00013821,2]
[403921156,1769680240325,-1017.09664357,0.00013821,2]
[403921157,1769680240355,-196.99444629,0.00013821,2]
[403921158,1769680240364,-1000.0,0.00013821,2]
[403921159,1769680240373,-1000.0,0.00013821,2]
[403921160,1769680240382,-1000.0,0.00013821,2]
[403921161,1769680240391,-1000.0,0.00013821,2]
[403921162,1769680240399,-1000.0,0.00013821,2]
[403921163,1769680240408,-897.62397769,0.00013821,2]
[403921164,1769680240418,-355.419529,0.00013821,2]
[403921165,1769680240426,-1000.0,0.00013821,2]
[403921166,1769680240435,-506.38016949,0.00013821,2]
[403921167,1769680240444,-175.05414771,0.00013821,2]
[403921168,1769680240452,-1000.0,0.00013821,2]
[403921169,1769680240461,-1000.0,0.00013821,2]
[403921170,1769680240470,-1000.0,0.00013821,2]
[403921171,1769680240479,-1000.0,0.00013821,2]
[403921172,1769680240487,-1000.0,0.00013821,2]
[403921173,1769680240496,-1007.51247725,0.00013821,2]
[403921174,1769680240505,-1000.0,0.00013821,2]
[403921175,1769680240514,-1002.6154559,0.00013821,2]
[403921176,1769680240523,-1000.0,0.00013821,2]
[403921177,1769680240532,-1107.3138929,0.00013821,2]
[403921178,1769680240540,-500.0,0.00013845,2]
[403921179,1769680240550,-720.0,0.00013924,2]
[403921180,1769680240560,-173.16,0.00013924,2]
[403921181,1769680240569,-173.16,0.00013924,2]
[403921182,1769680240579,-173.16,0.00013924,2]
[403921183,1769680240587,-1000.0,0.00013973,2]
[403921184,1769680240597,-150.75390644,0.00013973,2]
[403921185,1769680240606,-151.04060416,0.00013973,2]
[403921186,1769680240615,-500.0,0.00013973,2]
[403921187,1769680240624,-500.0,0.00013973,2]
[403921188,1769680240634,-150.4025982,0.00013973,2]
[403921189,1769680240643,-720.0,0.00014024,2]
[403921190,1769680240653,-4626.895246,0.00014026,2]
[403921191,1769680240666,-500.0,0.0001411,2]
[403921192,1769680240675,-500.0,0.0001411,2]
[403921193,1769680240684,-500.0,0.00014119,2]
[403921194,1769680240693,-9835.07,0.00014149,2]
[403921195,1769680240703,-600.0,0.00014221,2]
[403921196,1769680240712,-160.9968606,0.00014247,2]
[403921197,1769680240721,-1000.0,0.00014247,2]
[403921198,1769680240732,-1000.0,0.00014247,2]
[403921199,1769680240741,-1000.0,0.00014247,2]
[403921200,1769680240750,-1000.0,0.00014247,2]
[403921201,1769680240759,-592.85387235,0.00014247,2]
[403921202,1769680240768,-1000.0,0.00014247,2]
[403921203,1769680240777,-504.15902707,0.00014247,2]
[403921204,1769680240786,-1000.0,0.00014247,2]
[403921205,1769680240795,-500.0,0.00014247,2]
[403921206,1769680240804,-1000.0,0.00014247,2]
[403921207,1769680240813,-1102.21614882,0.00014247,2]
[403921209,1769680240822,-1000.0,0.00014247,2]
[403921211,1769680240831,-1134.23032778,0.00014247,2]
[403921213,1769680240840,-1000.0,0.00014247,2]
[403921214,1769680240849,-500.0,0.00014247,2]
[403921215,1769680240858,-500.0,0.00014247,2]
[403921216,1769680240867,-200.0,0.00014247,2]
[403921217,1769680240876,-969.61936393,0.00014368,2]
[403921218,1769680240885,-1000.0,0.00014368,2]
[403921219,1769680240895,-1500.0,0.00014368,2]
[403921220,1769680240904,-1059.00085584,0.00014368,2]
[403921221,1769680240913,-1174.31678051,0.00014368,2]
[403921222,1769680240922,-1500.0,0.00014368,2]
[403921223,1769680240931,-1500.0,0.00014368,2]
[403921224,1769680240940,-268.34650551,0.00014368,2]
[403921225,1769680240949,-1500.0,0.00014368,2]
[403921226,1769680240958,-1500.0,0.00014368,2]
[403921227,1769680240967,-1500.0,0.00014368,2]
[403921228,1769680240976,-1500.0,0.00014368,2]
[403921229,1769680240985,-1500.0,0.00014368,2]
[403921230,1769680240994,-167.59538682,0.00014384,2]
[403921231,1769680241004,-500.0,0.00014384,2]
[403921232,1769680241013,-500.0,0.00014384,2]
[403921233,1769680241022,-500.0,0.00014393,2]
[403921234,1769680241031,-1959.18301667,0.0001443,2]
[403921235,1769680241041,-284.54445003,0.00014498,2]
[403921236,1769680241050,-218.34852113,0.00014521,2]
[403921237,1769680241059,-500.0,0.00014521,2]
[403921238,1769680241068,-4626.895246,0.00014571,2]
[403921239,1769680241078,-550.0,0.00014658,2]
[403921240,1769680241088,-900.0,0.00014768,2]
[403921241,1769680241097,-1500.0,0.00014795,2]
[403921242,1769680241106,-565.0903288,0.00014795,2]
[403921243,1769680241115,-336.07837269,0.00014795,2]
[403921245,1769680241124,-822.54748319,0.00014795,2]
[403921246,1769680241133,-501.10012348,0.00014795,2]
[403921247,1769680241142,-1500.0,0.00014795,2]
[403921249,1769680241151,-1500.0,0.00014795,2]
[403921251,1769680241160,-732.23640219,0.00014795,2]
[403921253,1769680241169,-151.76349159,0.000149,2]
[403921255,1769680241178,-151.76349157,0.000149,2]
[403921256,1769680241187,-151.76349157,0.000149,2]
[403921258,1769680241196,-1000.0,0.00014916,2]
[403921259,1769680241205,-2001.01080598,0.00014916,2]
[403921260,1769680241215,-1000.0,0.00014916,2]
[403921261,1769680241224,-504.66008898,0.00014916,2]
[403921262,1769680241233,-1500.0,0.00014916,2]
[403921263,1769680241243,-1000.0,0.00014916,2]
[403921264,1769680241251,-2000.0,0.00014916,2]
[403921265,1769680241261,-2000.0,0.00014916,2]
[403921266,1769680241271,-587.0,0.00015046,2]
[403921267,1769680241280,-1959.18301667,0.00015106,2]
[403921268,1769680241290,-4626.895246,0.00015115,2]
[403921269,1769680241299,-6549.26139804,0.0001519,2]
[403921270,1769680241376,-395.37,0.00012329,2]
[403921271,1769680241385,-280.24857851,0.0001519,2]
[403921283,1769680243500,-3720.14999924,0.0001519,2]
[403921331,1769680246028,-4547.57717741,0.0001519,2]
[403921333,1769680246041,-2221.4041923,0.0001519,2]
[403921335,1769680246051,-8095.8321749,0.00015206,2]
[403921336,1769680246059,-446.48700145,0.00015212,2]
[403921338,1769680246069,-583.69604319,0.00015274,2]
[403921340,1769680246077,-2332.44938857,0.00015274,2]
[403921342,1769680246086,-1200.0,0.00015316,2]
[403921344,1769680246096,-500.0,0.00015342,2]
[403921346,1769680246105,-2000.0,0.00015342,2]
[403921348,1769680246114,-849.71421088,0.00015342,2]
[403921350,1769680246124,-333990.50270196,0.000154,2]
[403921458,1769680449706,-359.63433948,0.00012274,2]
[403921459,1769680453000,-347.50418237,0.00012274,2]
[403921460,1769680479569,-684.14624965,0.00012274,2]
[403921461,1769680489683,707.13852185,0.00012274,2]
[403921462,1769680642002,500.0,0.00034685,120]
[403921463,1769680642272,388.19372545,0.00034685,120]
[403921533,1769680836767,-286.96796384,0.00012329,2]
[403921534,1769680836780,-42.50203616,0.00012329,2]
[403921535,1769680836789,-274.56,0.00012329,2]
[403921536,1769680836798,-12.40796384,0.00012329,2]
[403921539,1769680861296,408.5452872,0.00012229,2]
[403921543,1769680902462,155.285,0.00012152,2]
[403921544,1769680917508,207.93064547,0.00012229,2]
[403921549,1769681016073,113962.44791286,0.00034681,120]
[403921553,1769681137529,-216.39203616,0.00012329,2]
[403921554,1769681137556,-228.8,0.00012329,2]
[403921555,1769681137583,-152.53,0.00012329,2]
[403921556,1769681137609,-762.7,0.00012329,2]
[403921560,1769681215779,273.6932049,0.00034681,120]
[403921562,1769681241313,7279.16592768,0.00011392,2]